bitfinex-derivatives/quotes_SOLF0:USTF0_20241021
["timestamp","ask_amount","ask_price","bid_price","bid_amount"]
[1729517096901,9.58654074,164.89,164.78,1.2507]
[1729517097100,3.0343,164.84,164.8,3.035]
[1729517097296,9.58654074,164.89,164.78,1.2507]
[1729517097501,19.5572,164.95,164.78,1.2507]
[1729517097502,1.3472,164.95,164.78,1.2507]
[1729517097700,1.3472,164.95,164.79,2.617]
[1729517097701,6.5,164.94,164.79,2.617]
[1729517098195,6.5,164.94,164.84,3.0341]
[1729517098196,3.0336,164.88,164.84,3.0341]
[1729517098596,3.08786676,164.9,164.79,2.617]
[1729517098796,3.0333,164.9,164.82,6.5]
[1729517099197,3.0329,164.92,164.85,3.0339]
[1729517099497,3.0329,164.92,164.82,6.5]
[1729517099997,3.0324,164.95,164.82,6.5]
[1729517100393,3.032,164.97,164.82,6.5]
[1729517101003,3.06092285,165.0,164.82,6.5]
[1729517101203,1.2614,165.02,164.82,6.5]
[1729517101395,1.2614,165.02,164.88,3.0335]
[1729517101596,3.0317,164.98,164.89,10.3004]
[1729517101799,1.2614,165.02,164.89,10.3004]
[1729517101993,4.34750939,165.02,164.92,3.0326]
[1729517102205,1.2614,165.02,164.92,3.0326]
[1729517102704,3.0316,164.99,164.93,3.0324]
[1729517103000,1.2614,165.02,164.89,3.8004]
[1729517103296,1.2614,165.02,164.86,3.0337]
[1729517103297,3.0331,164.91,164.86,3.0337]
[1729517103497,3.0331,164.91,164.86,9.2537]
[1729517103896,6.22,164.98,164.87,3.0336]
[1729517104197,6.22,164.98,164.87,6.22]
[1729517104397,6.22,164.98,164.86,3.0339]
[1729517104995,6.22,164.98,164.85,6.22]
[1729517105899,6.22,164.99,164.86,1.2932]
[1729517106101,6.22,164.99,164.92,3.0326]
[1729517106102,3.0322,164.96,164.92,3.0326]
[1729517106398,3.0322,164.96,164.86,1.2932]
[1729517106399,4.33810237,165.02,164.9,6.22]
[1729517106603,3.0321,164.96,164.93,3.0325]
[1729517106803,3.0321,164.96,164.9,6.22]
[1729517107197,22.54810237,165.02,164.86,1.2932]
[1729517107500,4.33810237,165.02,164.86,7.5132]
[1729517107697,3.0322,164.96,164.86,7.5132]
[1729517108400,4.33810237,165.02,164.86,7.5132]
[1729517108698,3.0323,164.95,164.86,7.5132]
[1729517108905,4.33810237,165.02,164.92,3.0327]
[1729517109095,4.33810237,165.02,164.91,6.22]
[1729517110396,4.33810237,165.02,164.94,3.0324]
[1729517110616,4.33810237,165.02,164.91,6.22]
[1729517111410,3.0326,164.94,164.86,1.2932]
[1729517111709,6.22,164.98,164.87,6.22]
[1729517112001,3.0323,164.95,164.87,6.22]
[1729517112208,6.22,164.98,164.88,3.0335]
[1729517112605,3.0329,164.92,164.88,3.0335]
[1729517113396,3.0326,164.94,164.86,7.5132]
[1729517113602,6.22,164.98,164.86,7.5132]
[1729517114603,3.0323,164.95,164.89,3.0332]
[1729517114798,6.22,164.98,164.86,7.5132]
[1729517115606,3.0327,164.93,164.88,3.0334]
[1729517115799,6.22,164.98,164.88,6.22]
[1729517116805,3.0326,164.94,164.9,3.0331]
[1729517117998,6.22,164.98,164.88,6.22]
[1729517118705,3.0326,164.94,164.88,6.22]
[1729517118906,6.22,164.98,164.88,6.22]
[1729517119107,6.22,165.01,164.88,6.22]
[1729517119299,4.33810237,165.02,164.89,2.5522]
[1729517119503,10.55810237,165.02,164.89,2.5522]
[1729517120304,3.0321,164.96,164.89,2.5522]
[1729517120712,3.0317,164.99,164.92,3.0327]
[1729517120913,10.55810237,165.02,164.89,2.5522]
[1729517121108,28.76810237,165.02,164.82,1.3415]
[1729517121313,3.0331,164.91,164.87,3.0336]
[1729517121517,3.0331,164.91,164.83,8.8365]
[1729517122018,6.22,164.97,164.83,8.8365]
[1729517122215,3.0329,164.92,164.83,8.8365]
[1729517122610,6.0624,165.01,164.83,8.8365]
[1729517122810,3.0322,164.96,164.83,8.8365]
[1729517123011,6.22,165.0,164.91,3.0328]
[1729517123212,3.0323,164.95,164.91,3.0328]
[1729517123911,6.22,165.0,164.9,6.22]
[1729517124216,6.22,165.0,164.94,3.0323]
[1729517124418,6.22,165.0,164.91,2.6009]
[1729517125621,3.0325,164.94,164.9,6.22]
[1729517125807,6.22,165.0,164.9,6.22]
[1729517126218,3.032,164.97,164.93,3.0325]
[1729517128315,3.032,164.97,164.9,6.22]
[1729517128516,3.032,164.97,164.94,3.0324]
[1729517130418,10.55810237,165.02,164.9,6.22]
[1729517131618,10.55810237,165.02,164.91,3.0328]
[1729517131619,3.0325,164.94,164.91,3.0328]
[1729517134020,10.55810237,165.02,164.9,9.2531]
[1729517134220,5.96,165.01,164.9,6.22]
[1729517134718,24.17,165.01,164.86,1.3703]
[1729517134913,24.17,165.01,164.8,5.96]
[1729517135117,24.17,165.01,164.83,3.0343]
[1729517135317,18.21,164.97,164.81,1.2938]
[1729517135517,24.17,164.96,164.81,1.2938]
[1729517135718,5.96,164.95,164.82,3.0345]
[1729517135922,5.96,164.95,164.81,1.2938]
[1729517136120,1.3463,164.94,164.81,1.2938]
[1729517136826,1.3463,164.94,164.82,3.0346]
[1729517137124,1.3463,164.94,164.78,7.2397]
[1729517137421,1.3463,164.94,164.8,3.0349]
[1729517137422,3.0345,164.83,164.8,3.0349]
[1729517137623,5.96,164.89,164.78,1.2797]
[1729517137926,3.0349,164.81,164.78,4.315]
[1729517138429,3.0347,164.82,164.78,4.315]
[1729517138620,5.96,164.88,164.8,3.0349]
[1729517139027,3.0345,164.83,164.8,3.0349]
[1729517139228,5.96,164.88,164.78,1.2797]
[1729517139430,5.96,164.88,164.76,1.3599]
[1729517139629,5.96,164.88,164.72,1.2716]
[1729517139818,5.96,164.88,164.72,10.268]
[1729517140020,24.17,164.88,164.72,10.268]
[1729517140221,9.00796936,164.89,164.79,3.0351]
[1729517140425,5.96,164.89,164.79,3.0351]
[1729517140722,5.96,164.89,164.72,7.2316]
[1729517140723,3.0346,164.82,164.72,7.2316]
[1729517141223,8.95731621,164.89,164.72,1.2716]
[1729517141429,8.95731621,164.89,164.73,5.96]
[1729517141630,8.95731621,164.89,164.76,3.0357]
[1729517141820,3.0351,164.8,164.76,3.0357]
[1729517142522,3.035,164.81,164.77,3.0354]
[1729517142724,5.96,164.84,164.77,3.0354]
[1729517143123,3.0351,164.8,164.77,3.0354]
[1729517143326,5.96,164.87,164.73,5.96]
[1729517143723,3.0345,164.83,164.73,5.96]
[1729517143928,3.0345,164.83,164.76,3.0357]
[1729517144130,3.0345,164.83,164.77,1.2702]
[1729517145031,3.05193261,164.86,164.77,1.2702]
[1729517145430,3.05193261,164.86,164.79,3.035]
[1729517145630,3.0343,164.84,164.79,3.035]
[1729517145828,5.96,164.87,164.72,1.2716]
[1729517146029,1.3224,164.85,164.74,3.036]
[1729517146229,3.0356,164.77,164.72,2.5418]
[1729517146624,5.96,164.81,164.72,2.5418]
[1729517146830,3.0355,164.78,164.72,2.5418]
[1729517147027,5.96,164.81,164.72,2.5418]
[1729517147028,8.96065703,164.81,164.72,2.5418]
[1729517147428,3.0357,164.76,164.72,5.5781]
[1729517147733,8.96065703,164.81,164.7,5.96]
[1729517147932,3.0354,164.78,164.7,8.9967]
[1729517148230,8.96065703,164.81,164.7,5.96]
[1729517148432,3.0356,164.77,164.73,3.0362]
[1729517149838,5.96,164.81,164.7,5.96]
[1729517150031,3.07272762,164.84,164.7,5.96]
[1729517150337,5.96,164.94,164.7,5.96]
[1729517150537,1.2869,164.93,164.71,6.0731]
[1729517150836,1.2869,164.93,164.7,5.96]
[1729517151227,1.2869,164.93,164.72,6.0726]
[1729517151428,1.2869,164.93,164.73,3.8807]
[1729517151626,11.2047718,164.96,164.73,3.8807]
[1729517151829,11.2047718,164.96,164.74,1.51862636]
[1729517151830,5.96,164.96,164.74,1.51862636]
[1729517152036,5.96,164.96,164.9,3.033]
[1729517152236,5.96,164.96,164.73,3.8807]
[1729517152237,5.96,164.96,164.85,5.96]
[1729517152535,3.0334,164.89,164.84,3.0342]
[1729517152728,5.96,164.89,164.7,137.66516773]
[1729517152927,3.0345,164.83,164.78,3.0353]
[1729517153129,3.0345,164.83,164.74,5.96]
[1729517153538,3.0345,164.83,164.78,3.0352]
[1729517154337,5.96,164.89,164.74,5.96]
[1729517154532,3.0347,164.82,164.74,5.96]
[1729517154933,3.0347,164.82,164.77,3.0355]
[1729517155233,3.0349,164.81,164.74,5.96]
[1729517155735,3.0349,164.81,164.76,3.0356]
[1729517156536,3.0352,164.8,164.75,3.0359]
[1729517156742,5.96,164.84,164.73,5.96]
[1729517157039,24.17,164.83,164.6,5.96]
[1729517157240,25.4924,164.82,164.66,1.3633]
[1729517157537,3.0361,164.75,164.69,3.0368]
[1729517157736,22.5666494,164.82,164.69,3.0368]
[1729517157737,5.96,164.76,164.69,3.0368]
[1729517157940,5.96,164.76,164.66,1.3633]
[1729517158143,3.0363,164.74,164.68,3.0372]
[1729517158438,5.96,164.76,164.68,3.0372]
[1729517159942,3.0364,164.73,164.68,3.0372]
[1729517161436,3.0362,164.74,164.68,3.0372]
[1729517161834,3.0362,164.74,164.66,1.3633]
[1729517162031,4.3566494,164.82,164.66,1.3633]
[1729517162332,6.04,164.81,164.66,1.3633]
[1729517162737,3.0356,164.77,164.71,3.0365]
[1729517162938,6.04,164.78,164.71,3.0365]
[1729517163137,4.3566494,164.82,164.66,1.3633]
[1729517165942,9.0748,164.82,164.77,3.0355]
[1729517166141,3.0348,164.82,164.77,3.0355]
[1729517166333,3.0348,164.82,164.73,1.2545]
[1729517166648,6.04,164.85,164.78,3.0352]
[1729517167347,3.0345,164.83,164.79,3.0352]
[1729517167545,6.04,164.87,164.76,6.04]
[1729517167837,3.0341,164.85,164.76,6.04]
[1729517168045,6.04,164.87,164.76,6.04]
[1729517168239,9.0738,164.87,164.76,6.04]
[1729517168843,3.0338,164.87,164.76,6.04]
[1729517169143,3.0331,164.91,164.76,6.04]
[1729517169442,6.04,164.96,164.76,6.04]
[1729517169746,3.033,164.91,164.77,6.071]
[1729517170136,3.0337,164.87,164.76,6.04]
[1729517170450,6.04,164.91,164.77,6.04]
[1729517170743,3.0343,164.84,164.8,3.0348]
[1729517171046,7.2794,164.91,164.77,6.04]
[1729517172045,7.2794,164.91,164.82,3.0345]
[1729517172645,3.0339,164.87,164.82,3.0345]
[1729517174843,6.04,164.93,164.82,6.04]
[1729517175045,3.0326,164.94,164.83,2.5556]
[1729517175345,1.3105,164.99,164.84,1.353]
[1729517175346,12.52129232,164.99,164.84,1.353]
[1729517175539,6.04,164.97,164.84,1.353]
[1729517175739,3.0322,164.96,164.91,3.0329]
[1729517176347,3.0321,164.96,164.92,3.0327]
[1729517177143,6.04,165.0,164.92,3.0327]
[1729517177345,3.0323,164.95,164.92,3.0327]
[1729517177544,6.04,165.0,164.9,3.033]
[1729517177740,3.0325,164.94,164.88,6.04]
[1729517178345,3.0329,164.92,164.88,6.04]
[1729517178549,6.04,165.0,164.88,6.04]
[1729517178756,6.04,165.0,164.88,3.0335]
[1729517178945,18.21,164.99,164.84,7.393]
[1729517179252,11.21432806,164.98,164.84,7.393]
[1729517179452,11.21432806,164.99,164.89,3.0333]
[1729517179641,3.0329,164.92,164.89,3.0333]
[1729517180648,6.04,164.95,164.84,7.393]
[1729517181152,3.0335,164.89,164.86,3.0338]
[1729517181350,6.04,164.95,164.83,2.5556]
[1729517181351,1.3014,164.94,164.83,2.5556]
[1729517182254,1.3014,164.94,164.84,3.0342]
[1729517182549,1.3014,164.94,164.83,2.5556]
[1729517182946,3.0338,164.87,164.84,3.0342]
[1729517184046,2.97102579,164.92,164.83,2.5556]
[1729517184243,6.04,164.94,164.83,2.5556]
[1729517184554,6.04,164.94,164.84,1.2568]
[1729517184751,6.04,164.94,164.88,3.0335]
[1729517185651,3.033,164.91,164.88,3.0335]
[1729517186950,3.0332,164.9,164.88,3.0335]
[1729517188753,3.0327,164.93,164.9,3.0331]
[1729517189151,6.04,164.96,164.86,6.04]
[1729517189352,3.0325,164.94,164.86,6.04]
[1729517190255,3.0325,164.94,164.9,3.033]
[1729517191160,6.04,164.98,164.86,6.04]
[1729517191354,3.0323,164.95,164.92,3.0328]
[1729517191663,6.04,164.98,164.86,6.04]
[1729517191863,3.0321,164.96,164.92,3.0327]
[1729517193765,3.0321,164.96,164.86,6.04]
[1729517193969,5.84,165.01,164.94,3.0323]
[1729517194470,3.0316,164.99,164.94,3.0323]
[1729517194666,5.84,165.01,164.94,3.0323]
[1729517194864,8.81140444,165.01,164.94,3.0323]
[1729517195171,5.84,165.02,164.91,5.84]
[1729517195368,8.81899074,165.02,164.92,2.6814]
[1729517195569,3.0318,164.98,164.92,2.6814]
[1729517195873,3.0318,164.98,164.95,3.0321]
[1729517196075,8.81899074,165.02,164.92,2.6814]
[1729517196369,3.0317,164.98,164.95,3.0321]
[1729517196574,8.81899074,165.02,164.92,2.6814]
[1729517196575,20.03393385,165.02,164.92,2.6814]
[1729517196762,3.0317,164.99,164.95,3.0321]
[1729517197168,11.21494311,165.01,164.95,3.0321]
[1729517197476,3.0317,164.98,164.95,3.0321]
[1729517197668,8.81899074,165.02,164.91,5.84]
[1729517197973,8.81899074,165.02,164.93,3.0326]
[1729517198172,3.0322,164.96,164.93,3.0326]
[1729517198674,3.0322,164.96,164.94,3.0324]
[1729517198874,8.81899074,165.02,164.91,5.84]
[1729517199174,3.0318,164.98,164.91,5.84]
[1729517199668,3.0315,164.99,164.94,3.0324]
[1729517199873,11.21494311,165.02,164.92,1.2403]
[1729517200271,11.21494311,165.04,164.97,3.0318]
[1729517200470,5.84,165.06,164.97,3.0318]
[1729517200471,17.05494311,165.06,164.97,3.0318]
[1729517200766,2.99822978,165.05,164.92,1.2403]
[1729517201162,3.0313,165.01,164.95,3.0321]
[1729517201375,3.0313,165.01,164.92,1.2403]
[1729517201673,3.0313,165.01,164.97,3.0317]
[1729517202572,11.21494311,165.06,164.96,5.84]
[1729517202777,11.21494311,165.06,164.97,2.6066]
[1729517202964,3.05896906,165.07,164.97,2.6066]
[1729517203165,5.84,165.08,164.97,2.6066]
[1729517203368,3.0309,165.03,164.99,3.0315]
[1729517203569,5.84,165.08,164.97,2.6066]
[1729517203769,3.0307,165.04,165.0,3.0312]
[1729517204471,11.21494311,165.1,164.97,2.6066]
[1729517204671,3.0302,165.06,165.02,3.0308]
[1729517204978,12.45464311,165.14,164.97,2.6066]
[1729517205174,3.0301,165.07,165.03,3.0306]
[1729517205568,11.21494311,165.14,165.08,3.0298]
[1729517205878,11.21494311,165.19,165.08,5.84]
[1729517206078,5.84,165.22,165.09,2.5748]
[1729517206282,3.0285,165.16,165.12,3.0291]
[1729517206573,5.84,165.22,165.09,2.5748]
[1729517206775,3.0282,165.17,165.13,3.0289]
[1729517207477,8.81693317,165.22,165.09,2.5748]
[1729517207778,3.0281,165.18,165.13,3.0288]
[1729517208076,8.81693317,165.22,165.09,2.5748]
[1729517208272,3.0286,165.15,165.11,3.0293]
[1729517208578,8.81693317,165.22,165.02,1.362]
[1729517208579,5.84,165.17,165.06,5.84]
[1729517208979,3.0292,165.12,165.06,5.84]
[1729517209274,5.84,165.17,165.06,5.84]
[1729517209576,5.82,165.2,165.06,5.84]
[1729517209982,3.0284,165.16,165.08,3.0297]
[1729517210175,3.04515696,165.16,165.06,5.84]
[1729517210370,5.82,165.2,165.06,5.84]
[1729517210871,8.77973114,165.2,165.06,5.84]
[1729517211573,38.16018006,165.2,165.06,5.84]
[1729517211777,11.17044892,165.19,165.06,5.84]
[1729517212180,3.0294,165.11,165.07,3.03]
[1729517213175,2.95973114,165.2,165.03,2.698]
[1729517213383,7.123,165.19,165.04,5.82]
[1729517213570,3.0288,165.14,165.09,3.0296]
[1729517213775,3.0288,165.14,165.04,5.82]
[1729517214078,5.82,165.18,165.04,5.82]
[1729517214278,3.0287,165.15,165.04,5.82]
[1729517214781,3.029,165.13,165.04,5.82]
[1729517215174,3.029,165.13,165.08,3.0297]
[1729517216176,3.029,165.13,165.09,3.0296]
[1729517220478,5.82,165.18,165.05,5.82]
[1729517220885,3.0296,165.1,165.06,3.0301]
[1729517221574,3.0293,165.11,165.07,3.03]
[1729517222583,3.0299,165.08,165.05,3.0303]
[1729517222887,5.72,165.13,165.03,8.418]
[1729517223089,3.03,165.08,165.04,3.0305]
[1729517223478,3.03,165.08,165.03,8.418]
[1729517223985,3.03,165.08,165.05,3.0303]
[1729517224186,3.0302,165.07,165.03,8.418]
[1729517224381,8.78637418,165.13,165.05,3.0302]
[1729517224579,8.78637418,165.13,165.03,8.418]
[1729517224777,3.0295,165.1,165.03,8.418]
[1729517224982,3.0295,165.1,165.06,3.0301]
[1729517225383,3.0295,165.1,165.03,8.418]
[1729517225589,5.72,165.15,165.03,8.418]
[1729517226681,3.0296,165.1,165.06,3.0301]
[1729517227084,3.04619859,165.13,165.03,8.418]
[1729517227391,1.303,165.19,165.03,8.418]
[1729517227581,5.72,165.18,165.03,8.418]
[1729517227783,3.0289,165.13,165.1,3.0295]
[1729517228085,5.72,165.18,165.1,3.0295]
[1729517228290,3.0288,165.14,165.1,3.0295]
[1729517228884,3.0288,165.14,165.03,8.418]
[1729517229187,3.0285,165.16,165.04,6.0611]
[1729517229588,3.0285,165.16,165.12,3.029]
[1729517231381,3.0285,165.16,165.11,2.7248]
[1729517231692,3.0285,165.16,165.13,3.0289]
[1729517233189,3.028,165.18,165.14,3.0287]
[1729517233384,3.028,165.18,165.11,2.7248]
[1729517233990,3.028,165.18,165.14,3.0287]
[1729517235085,3.028,165.18,165.15,3.0285]
[1729517236592,5.72,165.23,165.11,4.0675]
[1729517236788,5.72,165.23,165.11,2.7248]
[1729517237390,3.0286,165.15,165.12,3.029]
[1729517237790,3.0286,165.15,165.12,3.0291]
[1729517238693,8.79994921,165.23,165.11,2.7248]
[1729517239995,3.0283,165.17,165.14,3.0287]
[1729517240292,3.0283,165.17,165.11,2.7248]
[1729517240486,8.79994921,165.23,165.11,2.7248]
[1729517241098,3.07994921,165.23,165.11,2.7248]
[1729517241400,5.72,165.22,165.11,2.7248]
[1729517241990,3.0285,165.16,165.14,3.0287]
[1729517242196,5.72,165.22,165.11,2.7248]
[1729517243201,3.05970824,165.23,165.11,2.7248]
[1729517243492,1.2964,165.24,165.11,2.7248]
[1729517243695,3.0777108,165.23,165.11,2.7248]
[1729517243898,117.44979879,165.29,165.19,3.0277]
[1729517244102,5.72,165.28,165.17,5.72]
[1729517244699,3.0274,165.22,165.19,3.0278]
[1729517245797,5.72,165.28,165.17,5.72]
[1729517246198,111.39759879,165.29,165.17,5.72]
[1729517246405,3.0274,165.22,165.18,3.028]
[1729517246802,5.72,165.28,165.17,5.72]
[1729517247003,3.0271,165.23,165.19,3.0277]
[1729517247501,117.11759879,165.29,165.18,1.2464]
[1729517247690,3.027,165.24,165.18,2.4893]
[1729517248093,3.027,165.24,165.2,3.0275]
[1729517248295,3.0272,165.23,165.2,3.0275]
[1729517249099,3.0272,165.23,165.19,3.0278]
[1729517249693,111.39759879,165.29,165.18,2.4893]
[1729517250402,111.39759879,165.29,165.19,3.0277]
[1729517250403,3.0272,165.23,165.19,3.0277]
[1729517250903,5.72,165.31,165.18,2.4893]
[1729517251201,1.2503,165.32,165.19,1.274]
[1729517251399,3.0257,165.31,165.27,3.0262]
[1729517252004,3.0261,165.29,165.26,5.72]
[1729517252601,3.0253,165.33,165.29,3.0259]
[1729517252803,3.06076409,165.39,165.27,2.6313]
[1729517253001,1.281,165.43,165.27,2.6313]
[1729517253306,1.281,165.43,165.28,1.2813]
[1729517253607,3.0246,165.37,165.33,3.0251]
[1729517253807,3.0246,165.37,165.34,5.72]
[1729517254003,6.0448,165.49,165.34,5.72]
[1729517254211,3.0239,165.41,165.36,3.0247]
[1729517254911,3.024,165.4,165.35,3.0248]
[1729517256010,3.0238,165.41,165.35,3.0248]
[1729517256205,3.0238,165.41,165.36,3.0246]
[1729517256698,3.0236,165.42,165.35,2.5712]
[1729517256910,5.72,165.46,165.35,2.5712]
[1729517257108,8.70074388,165.46,165.35,2.5712]
[1729517257305,3.0235,165.43,165.36,3.0247]
[1729517257608,8.70074388,165.46,165.35,2.5712]
[1729517257909,3.0236,165.43,165.35,2.5712]
[1729517258417,3.0236,165.43,165.38,3.0242]
[1729517258703,3.0236,165.43,165.36,1.3187]
[1729517259898,3.0236,165.43,165.38,3.0242]
[1729517260104,3.0236,165.43,165.39,5.72]
[1729517260410,5.72,165.49,165.36,1.3187]
[1729517260618,5.72,165.49,165.36,5.72]
[1729517260915,3.024,165.41,165.36,5.72]
[1729517261214,3.024,165.41,165.37,3.0245]
[1729517261413,3.0231,165.46,165.36,5.72]
[1729517261713,2.96343078,165.45,165.36,5.72]
[1729517261915,2.99914206,165.47,165.37,1.3299]
[1729517262114,6.9653,165.52,165.37,1.3299]
[1729517262304,1.2453,165.52,165.37,1.3299]
[1729517262607,5.72,165.51,165.37,1.3299]
[1729517262814,5.72,165.51,165.39,3.024]
[1729517263009,3.0234,165.44,165.37,1.3299]
[1729517263207,5.72,165.51,165.37,1.3299]
[1729517263912,3.0229,165.47,165.37,1.3299]
[1729517264516,1.2453,165.52,165.37,1.3299]
[1729517265613,3.0228,165.47,165.43,3.0233]
[1729517265911,3.0228,165.47,165.43,8.7433]
[1729517266212,1.2453,165.52,165.43,5.72]
[1729517266815,1.2453,165.52,165.44,3.0232]
[1729517267206,3.0222,165.5,165.44,3.0232]
[1729517267409,1.2453,165.52,165.44,3.0232]
[1729517267607,1.2453,165.52,165.45,3.0229]
[1729517267809,3.0225,165.48,165.45,3.0229]
[1729517269215,3.0225,165.48,165.43,5.72]
[1729517269216,5.72,165.54,165.43,5.72]
[1729517269520,3.04955472,165.56,165.44,2.5449]
[1729517269710,7.033,165.57,165.44,2.5449]
[1729517269910,3.0217,165.53,165.49,3.0222]
[1729517270321,3.0216,165.54,165.5,3.022]
[1729517271314,3.0216,165.54,165.48,5.72]
[1729517271514,3.0216,165.54,165.51,3.0219]
[1729517271717,6.00087716,165.55,165.48,5.72]
[1729517271920,6.00087716,165.55,165.51,3.0218]
[1729517272119,2.97947716,165.55,165.51,3.0218]
[1729517272415,1.313,165.57,165.51,3.0218]
[1729517272821,4.31365558,165.57,165.51,3.0218]
[1729517273020,1.313,165.57,165.51,3.0218]
[1729517273220,1.313,165.57,165.48,5.72]
[1729517273423,1.313,165.57,165.51,3.0219]
[1729517273720,4.36053609,165.57,165.48,5.72]
[1729517273922,1.313,165.57,165.5,3.022]
[1729517274221,4.39955278,165.57,165.48,5.72]
[1729517274417,1.313,165.57,165.5,3.022]
[1729517274816,3.0216,165.54,165.5,3.022]
[1729517275015,1.313,165.57,165.45,1.3136]
[1729517275016,4.33724706,165.57,165.45,1.3136]
[1729517275217,4.33724706,165.57,165.47,3.0226]
[1729517275218,1.313,165.57,165.47,3.0226]
[1729517275419,5.72,165.56,165.45,5.72]
[1729517275718,8.73559598,165.56,165.46,3.0228]
[1729517276114,8.73559598,165.56,165.45,5.72]
[1729517276115,3.0223,165.5,165.45,5.72]
[1729517276320,3.0223,165.5,165.47,3.0227]
[1729517276723,8.73559598,165.56,165.45,5.72]
[1729517279429,3.022,165.52,165.49,3.0223]
[1729517280014,8.73559598,165.56,165.47,3.0225]
[1729517280422,8.73559598,165.56,165.45,5.72]
[1729517281019,3.0218,165.53,165.48,3.0225]
[1729517281225,8.73559598,165.56,165.45,5.72]
[1729517281521,3.0221,165.51,165.48,3.0225]
[1729517281925,8.73559598,165.56,165.45,5.72]
[1729517282121,3.0216,165.53,165.5,3.022]
[1729517282819,8.73559598,165.56,165.45,5.72]
[1729517282820,3.01559598,165.56,165.45,5.72]
[1729517283128,1.3181,165.61,165.45,5.72]
[1729517283422,1.3181,165.61,165.54,3.0213]
[1729517283423,3.021,165.57,165.54,3.0213]
[1729517283819,3.021,165.57,165.51,5.7]
[1729517283820,3.01971024,165.59,165.51,5.7]
[1729517284118,1.3181,165.61,165.51,5.7]
[1729517284119,3.0207,165.58,165.51,5.7]
[1729517284319,5.7,165.7,165.52,2.6392]
[1729517284522,6.9696,165.7,165.52,3.9925]
[1729517284826,5.7,165.68,165.52,3.9925]
[1729517285019,2.99944523,165.71,165.52,3.9925]
[1729517285326,1.2696,165.75,165.52,3.9925]
[1729517285530,4.23464387,165.75,165.52,3.9925]
[1729517285726,3.018,165.73,165.68,3.0188]
[1729517285922,2.99739091,165.75,165.66,5.7]
[1729517286235,5.7,165.79,165.67,5.7]
[1729517286722,8.65990462,165.79,165.67,5.7]
[1729517286933,3.0177,165.75,165.69,3.0187]
[1729517287127,8.65990462,165.79,165.67,5.7]
[1729517287627,8.65990462,165.79,165.61,4.0141]
[1729517287825,8.65990462,165.79,165.62,5.7]
[1729517288420,2.95990462,165.79,165.62,5.7]
[1729517288624,5.7,165.79,165.62,5.7]
[1729517288828,3.0173,165.77,165.62,5.7]
[1729517289027,5.7,165.79,165.62,5.7]
[1729517289230,3.0178,165.74,165.67,3.019]
[1729517289531,8.66820982,165.79,165.68,5.7]
[1729517290032,3.0176,165.75,165.7,3.0185]
[1729517290533,3.0179,165.74,165.69,3.0187]
[1729517290735,3.0179,165.74,165.68,5.7]
[1729517290736,8.66820982,165.79,165.68,5.7]
[1729517291127,3.018,165.74,165.69,3.0185]
[1729517291427,3.018,165.74,165.68,5.7]
[1729517291631,3.0176,165.75,165.7,3.0184]
[1729517292227,3.0178,165.74,165.7,3.0184]